[Event "Late-Titled-Tuesday-Blitz-September-12-2023"]
[Site "Chess.com"]
[Date "2023.09.12"]
[Round "6"]
[White "KVAIDAN"]
[Black "KNVB"]
[Result "0-1"]
[WhiteElo "2265"]
[BlackElo "2753"]
[TimeControl "180+1"]
[EndTime "15:03:45 PDT"]
[Termination "KNVB won by resignation"]

1. f4 {[%clk 0:03:00.8]} 1... d5 {[%clk 0:02:59.5]} 2. Nf3 {[%clk 0:03:01.1]}
2... Nh6 {[%clk 0:03:00.4]} 3. e3 {[%clk 0:03:01.3]} 3... Bg4 {[%clk 0:03:00.8]}
4. h3 {[%clk 0:02:59]} 4... Bxf3 {[%clk 0:02:59]} 5. Qxf3 {[%clk 0:02:59.9]}
5... e6 {[%clk 0:02:58.1]} 6. b3 {[%clk 0:02:59.2]} 6... Nf5 {[%clk 0:02:54]} 7.
g4 {[%clk 0:02:55.5]} 7... Qh4+ {[%clk 0:02:53.2]} 8. Qf2 {[%clk 0:02:54.8]}
8... Qxf2+ {[%clk 0:02:52.1]} 9. Kxf2 {[%clk 0:02:55.2]} 9... Nd6 {[%clk
0:02:52]} 10. Bb2 {[%clk 0:02:55.1]} 10... Nd7 {[%clk 0:02:15.1]} 11. d3 {[%clk
0:02:51.4]} 11... c6 {[%clk 0:01:50.3]} 12. Nd2 {[%clk 0:02:50.5]} 12... O-O-O
{[%clk 0:01:46.8]} 13. Nf3 {[%clk 0:02:49.3]} 13... Rg8 {[%clk 0:01:11.3]} 14.
h4 {[%clk 0:02:47.1]} 14... Be7 {[%clk 0:01:10.1]} 15. h5 {[%clk 0:02:43.8]}
15... Bf6 {[%clk 0:01:06.8]} 16. Ne5 {[%clk 0:02:41]} 16... Be7 {[%clk
0:00:57.4]} 17. g5 {[%clk 0:02:32.8]} 17... Nxe5 {[%clk 0:00:56.6]} 18. Bxe5
{[%clk 0:02:32.6]} 18... f6 {[%clk 0:00:53.7]} 19. Bb2 {[%clk 0:02:28.8]} 19...
fxg5 {[%clk 0:00:52.1]} 20. Bh3 {[%clk 0:02:27.4]} 20... Kd7 {[%clk 0:00:51.7]}
21. fxg5 {[%clk 0:02:11.4]} 21... Bxg5 {[%clk 0:00:52.6]} 22. Rag1 {[%clk
0:02:11.4]} 22... Bf6 {[%clk 0:00:41.9]} 23. Ba3 {[%clk 0:02:06.5]} 23... Be7
{[%clk 0:00:10.8]} 24. Ke2 {[%clk 0:02:05.7]} 24... a5 {[%clk 0:00:09.9]} 25. c4
{[%clk 0:01:59.8]} 25... Ra8 {[%clk 0:00:07]} 26. Rf1 {[%clk 0:01:52.3]} 26...
Rgf8 {[%clk 0:00:04.6]} 27. h6 {[%clk 0:01:45.1]} 27... gxh6 {[%clk 0:00:03.7]}
28. Rxf8 {[%clk 0:01:43.4]} 28... Rxf8 {[%clk 0:00:03.5]} 29. Rg1 {[%clk
0:01:43.4]} 29... Bg5 {[%clk 0:00:03.8]} 30. Bg4 {[%clk 0:01:43.3]} 30... a4
{[%clk 0:00:03]} 31. e4 {[%clk 0:01:39.2]} 31... axb3 {[%clk 0:00:02.8]} 32. e5
{[%clk 0:01:38.6]} 32... Ra8 {[%clk 0:00:02.1]} 33. Bxd6 {[%clk 0:01:36.7]}
33... Rxa2+ {[%clk 0:00:01.7]} 34. Kf3 {[%clk 0:01:37.3]} 34... b2 {[%clk
0:00:02.1]} 35. Rb1 {[%clk 0:01:37.3]} 35... Bc1 {[%clk 0:00:02.2]} 36. cxd5
{[%clk 0:01:35.8]} 36... cxd5 {[%clk 0:00:01.9]} 37. Bf8 {[%clk 0:01:26.4]}
37... Ra1 {[%clk 0:00:02]} 38. Rxb2 {[%clk 0:01:26.5]} 38... Bxb2 {[%clk
0:00:02.9]} 39. Bxh6 {[%clk 0:01:26.8]} 39... Bxe5 {[%clk 0:00:03.6]} 40. Ke2
{[%clk 0:01:25.1]} 40... Bd4 {[%clk 0:00:04]} 41. Bf8 {[%clk 0:01:21.6]} 41...
Ra2+ {[%clk 0:00:04.9]} 42. Kf3 {[%clk 0:01:21.2]} 42... Rf2+ {[%clk 0:00:04.6]}
43. Kg3 {[%clk 0:01:21.5]} 43... Rxf8 {[%clk 0:00:05.5]} 44. Bh5 {[%clk
0:01:21.5]} 44... Kd6 {[%clk 0:00:04.7]} 45. Bd1 {[%clk 0:01:20.9]} 45... e5
{[%clk 0:00:04.6]} 46. Bc2 {[%clk 0:01:21.3]} 46... Rc8 {[%clk 0:00:04.3]} 47.
Ba4 {[%clk 0:01:20.9]} 47... Rc3 {[%clk 0:00:05.2]} 48. Bb5 {[%clk 0:01:20.3]}
48... Kc5 {[%clk 0:00:05.7]} 49. Bd7 {[%clk 0:01:19.3]} 49... Rxd3+ {[%clk
0:00:06.1]} 50. Kg4 {[%clk 0:01:19.3]} 50... e4 {[%clk 0:00:06.8]} 51. Bf5
{[%clk 0:01:18]} 51... Rf3 {[%clk 0:00:06.3]} 52. Bxh7 {[%clk 0:01:18.1]} 52...
Rf6 {[%clk 0:00:06.3]} 53. Kg3 {[%clk 0:01:16.7]} 53... Kd6 {[%clk 0:00:07.2]}
54. Kg2 {[%clk 0:01:16.6]} 54... b5 {[%clk 0:00:07.9]} 55. Kh3 {[%clk
0:01:13.3]} 55... Rh6+ {[%clk 0:00:07.4]} 0-1

[Event "Late-Titled-Tuesday-Blitz-September-12-2023"]
[Site "Chess.com"]
[Date "2023.09.12"]
[Round "6"]
[White "FredddieCroderg"]
[Black "ManuMunoz01"]
[Result "1-0"]
[WhiteElo "2334"]
[BlackElo "2249"]
[TimeControl "180+1"]
[EndTime "15:03:46 PDT"]
[Termination "FredddieCroderg won by resignation"]

1. e4 {[%clk 0:03:00.9]} 1... d5 {[%clk 0:02:51.2]} 2. d3 {[%clk 0:02:58.8]}
2... d4 {[%clk 0:02:47.9]} 3. f4 {[%clk 0:02:57.2]} 3... c5 {[%clk 0:02:44.3]}
4. Nf3 {[%clk 0:02:57.7]} 4... b6 {[%clk 0:02:39.8]} 5. Be2 {[%clk 0:02:58.2]}
5... Bg4 {[%clk 0:02:35.4]} 6. O-O {[%clk 0:02:58.5]} 6... Bxf3 {[%clk
0:02:33.7]} 7. Bxf3 {[%clk 0:02:59.4]} 7... Nd7 {[%clk 0:02:29]} 8. e5 {[%clk
0:02:58.4]} 8... Rc8 {[%clk 0:02:12.4]} 9. e6 {[%clk 0:02:58.1]} 9... fxe6
{[%clk 0:02:10.6]} 10. Bg4 {[%clk 0:02:54.2]} 10... Rc6 {[%clk 0:01:50.3]} 11.
Nd2 {[%clk 0:02:51.1]} 11... Ngf6 {[%clk 0:01:47.9]} 12. Nc4 {[%clk 0:02:51.7]}
12... Nxg4 {[%clk 0:01:19.4]} 13. Qxg4 {[%clk 0:02:50.7]} 13... Nf6 {[%clk
0:01:20.3]} 14. Qh3 {[%clk 0:02:34.4]} 14... g6 {[%clk 0:01:19.4]} 15. Ne5
{[%clk 0:02:34.8]} 15... Rd6 {[%clk 0:01:19.4]} 16. Nxg6 {[%clk 0:02:33.2]}
16... Rg8 {[%clk 0:01:18.5]} 17. Ne5 {[%clk 0:02:30.1]} 17... Qc8 {[%clk
0:01:01.1]} 18. b3 {[%clk 0:02:21.4]} 18... Bg7 {[%clk 0:00:46.6]} 19. Bd2
{[%clk 0:02:19.8]} 19... Rf8 {[%clk 0:00:33.9]} 20. Rae1 {[%clk 0:02:18.7]}
20... Kd8 {[%clk 0:00:34]} 21. a4 {[%clk 0:02:14.8]} 21... Kc7 {[%clk
0:00:30.3]} 22. Nc4 {[%clk 0:02:14.1]} 22... Rc6 {[%clk 0:00:29.5]} 23. b4
{[%clk 0:02:09]} 23... cxb4 {[%clk 0:00:27.1]} 24. Bxb4 {[%clk 0:02:09]} 24...
Nd5 {[%clk 0:00:25.1]} 25. Bd2 {[%clk 0:01:55.3]} 25... e5 {[%clk 0:00:20.3]}
26. Qxc8+ {[%clk 0:01:43.8]} 26... Kxc8 {[%clk 0:00:21.2]} 27. fxe5 {[%clk
0:01:42.7]} 27... Kd7 {[%clk 0:00:18.4]} 28. Rxf8 {[%clk 0:01:37.5]} 28... Bxf8
{[%clk 0:00:18.4]} 29. Rf1 {[%clk 0:01:38]} 29... Ke8 {[%clk 0:00:18.5]} 30. g3
{[%clk 0:01:31.1]} 30... a6 {[%clk 0:00:18.6]} 31. Rb1 {[%clk 0:01:30.3]} 31...
Kd7 {[%clk 0:00:15.6]} 32. Kg2 {[%clk 0:01:30.2]} 32... Bg7 {[%clk 0:00:14.9]}
33. Kf3 {[%clk 0:01:29.6]} 33... Ke6 {[%clk 0:00:14.5]} 34. Ke4 {[%clk
0:01:29.6]} 34... Bxe5 {[%clk 0:00:07]} 35. Nxe5 {[%clk 0:01:27.1]} 35... Nf6+
{[%clk 0:00:07.2]} 36. Kxd4 {[%clk 0:01:25.7]} 36... Rd6+ {[%clk 0:00:07.5]} 37.
Kc4 {[%clk 0:01:18.6]} 37... Nd5 {[%clk 0:00:05.9]} 38. d4 {[%clk 0:01:13.5]}
38... Rd8 {[%clk 0:00:05]} 39. Kd3 {[%clk 0:01:12.2]} 39... Rc8 {[%clk
0:00:04.1]} 40. c4 {[%clk 0:01:12]} 40... Nf6 {[%clk 0:00:03.8]} 41. Rxb6+
{[%clk 0:01:11.6]} 41... Kf5 {[%clk 0:00:04.4]} 42. Rxa6 {[%clk 0:01:07.2]}
42... Rb8 {[%clk 0:00:04.9]} 43. Bc3 {[%clk 0:01:05.1]} 43... Rb3 {[%clk
0:00:04.1]} 44. Kc2 {[%clk 0:01:03]} 44... Ra3 {[%clk 0:00:04.3]} 45. Kb2 {[%clk
0:00:50.8]} 1-0

[Event "Late-Titled-Tuesday-Blitz-September-12-2023"]
[Site "Chess.com"]
[Date "2023.09.12"]
[Round "6"]
[White "APOKALIPSA13"]
[Black "Vyacheslav_N"]
[Result "0-1"]
[WhiteElo "2265"]
[BlackElo "2462"]
[TimeControl "180+1"]
[EndTime "15:03:47 PDT"]
[Termination "Vyacheslav_N won on time"]

1. e4 {[%clk 0:02:57.3]} 1... c5 {[%clk 0:03:00]} 2. Nf3 {[%clk 0:02:55.8]} 2...
Nc6 {[%clk 0:03:00.3]} 3. d4 {[%clk 0:02:55.6]} 3... cxd4 {[%clk 0:03:00.4]} 4.
Nxd4 {[%clk 0:02:56.5]} 4... Nf6 {[%clk 0:03:00.3]} 5. Nc3 {[%clk 0:02:56.7]}
5... e5 {[%clk 0:03:00.7]} 6. Nb3 {[%clk 0:02:52.4]} 6... Bb4 {[%clk 0:02:59.6]}
7. Bd3 {[%clk 0:02:52.9]} 7... O-O {[%clk 0:02:55]} 8. Bg5 {[%clk 0:02:49.3]}
8... Bxc3+ {[%clk 0:02:54.6]} 9. bxc3 {[%clk 0:02:48.5]} 9... d6 {[%clk
0:02:55.2]} 10. O-O {[%clk 0:02:43.6]} 10... h6 {[%clk 0:02:54.9]} 11. Bh4
{[%clk 0:02:42.5]} 11... g5 {[%clk 0:02:54.1]} 12. Bg3 {[%clk 0:02:41.9]} 12...
Be6 {[%clk 0:02:53.5]} 13. c4 {[%clk 0:02:38.5]} 13... Rc8 {[%clk 0:02:50.9]}
14. a3 {[%clk 0:02:33.7]} 14... Na5 {[%clk 0:02:51]} 15. Qe2 {[%clk 0:02:28.1]}
15... Nxc4 {[%clk 0:02:50.8]} 16. h4 {[%clk 0:02:21.7]} 16... Kg7 {[%clk
0:02:45.1]} 17. Rfd1 {[%clk 0:01:53.8]} 17... Qc7 {[%clk 0:02:37.4]} 18. Nd2
{[%clk 0:01:37.7]} 18... Nxd2 {[%clk 0:02:15.7]} 19. Qxd2 {[%clk 0:01:36]} 19...
Kg6 {[%clk 0:02:10.4]} 20. f4 {[%clk 0:01:25.4]} 20... exf4 {[%clk 0:02:01.4]}
21. e5+ {[%clk 0:01:22.6]} 21... Kh5 {[%clk 0:01:48.5]} 22. exf6 {[%clk
0:00:56.2]} 22... fxg3 {[%clk 0:01:48.2]} 23. hxg5 {[%clk 0:00:49.6]} 23... hxg5
{[%clk 0:01:46.2]} 24. Rf1 {[%clk 0:00:36.4]} 24... Qc5+ {[%clk 0:01:44.2]} 25.
Kh1 {[%clk 0:00:34.2]} 25... Qe5 {[%clk 0:01:38.6]} 26. Rae1 {[%clk 0:00:32.6]}
26... Qd5 {[%clk 0:01:34.3]} 27. Rf3 {[%clk 0:00:27.3]} 27... g4 {[%clk
0:01:20.1]} 28. Rxg3 {[%clk 0:00:20.7]} 28... Rc4 {[%clk 0:01:18.2]} 29. Kg1
{[%clk 0:00:14.9]} 29... Qd4+ {[%clk 0:01:14.3]} 30. Ree3 {[%clk 0:00:13.5]}
30... Ra4 {[%clk 0:01:10.3]} 31. Kf1 {[%clk 0:00:12]} 31... Qa1+ {[%clk
0:01:06.7]} 32. Ke2 {[%clk 0:00:11.9]} 32... Rxa3 {[%clk 0:00:57.3]} 33. Re4
{[%clk 0:00:08.8]} 33... Ra4 {[%clk 0:00:54.2]} 34. Qf4 {[%clk 0:00:07.5]} 34...
Rxe4+ {[%clk 0:00:52.6]} 35. Qxe4 {[%clk 0:00:08.4]} 35... Qe5 {[%clk
0:00:52.3]} 36. Qxe5+ {[%clk 0:00:04.3]} 36... dxe5 {[%clk 0:00:53]} 37. Ke3
{[%clk 0:00:04.7]} 37... Kg5 {[%clk 0:00:53.2]} 38. Be2 {[%clk 0:00:04.3]} 38...
Bf5 {[%clk 0:00:51.4]} 39. c3 {[%clk 0:00:03.9]} 39... Kxf6 {[%clk 0:00:49.6]}
40. Bxg4 {[%clk 0:00:03.3]} 40... Rg8 {[%clk 0:00:50.2]} 41. Kf3 {[%clk
0:00:03.8]} 41... Rxg4 {[%clk 0:00:50.4]} 42. Rxg4 {[%clk 0:00:04.7]} 42...
Bxg4+ {[%clk 0:00:51.1]} 43. Kxg4 {[%clk 0:00:05.4]} 43... a5 {[%clk 0:00:51.3]}
44. Kf3 {[%clk 0:00:05.3]} 44... a4 {[%clk 0:00:52]} 45. Ke3 {[%clk 0:00:05.6]}
45... a3 {[%clk 0:00:52.6]} 46. Kd2 {[%clk 0:00:05.9]} 46... a2 {[%clk
0:00:53.3]} 0-1

[Event "Late-Titled-Tuesday-Blitz-September-12-2023"]
[Site "Chess.com"]
[Date "2023.09.12"]
[Round "6"]
[White "jaskol95"]
[Black "ChessSwole"]
[Result "1-0"]
[WhiteElo "2541"]
[BlackElo "2694"]
[TimeControl "180+1"]
[EndTime "15:03:48 PDT"]
[Termination "jaskol95 won by resignation"]

1. d4 {[%clk 0:03:00.9]} 1... d5 {[%clk 0:02:56.3]} 2. Nc3 {[%clk 0:03:01.2]}
2... Nf6 {[%clk 0:02:55.6]} 3. Bf4 {[%clk 0:03:01.7]} 3... c5 {[%clk 0:02:55.3]}
4. e4 {[%clk 0:03:02.2]} 4... cxd4 {[%clk 0:02:54.3]} 5. Qxd4 {[%clk 0:02:59.1]}
5... Nc6 {[%clk 0:02:53.2]} 6. Bb5 {[%clk 0:02:59.5]} 6... Bd7 {[%clk
0:02:53.1]} 7. Bxc6 {[%clk 0:03:00.1]} 7... Bxc6 {[%clk 0:02:54]} 8. e5 {[%clk
0:03:00.7]} 8... Nd7 {[%clk 0:02:53]} 9. e6 {[%clk 0:03:01.4]} 9... fxe6 {[%clk
0:02:53.9]} 10. Nf3 {[%clk 0:03:01.4]} 10... Qb6 {[%clk 0:02:51.2]} 11. Qd2
{[%clk 0:02:54.8]} 11... d4 {[%clk 0:02:48.1]} 12. Nxd4 {[%clk 0:02:43.4]} 12...
Bxg2 {[%clk 0:02:46.2]} 13. Rg1 {[%clk 0:02:36.6]} 13... e5 {[%clk 0:02:46.7]}
14. Rxg2 {[%clk 0:02:22.6]} 14... Qxd4 {[%clk 0:02:31.5]} 15. Nb5 {[%clk
0:01:55.4]} 15... Qe4+ {[%clk 0:02:18]} 16. Be3 {[%clk 0:01:34.8]} 16... Qxg2
{[%clk 0:02:13.4]} 17. Nc7+ {[%clk 0:01:34.9]} 17... Kd8 {[%clk 0:01:57]} 18.
O-O-O {[%clk 0:01:14.8]} 18... Qc6 {[%clk 0:01:33.1]} 19. Nxa8 {[%clk
0:01:15.1]} 19... b6 {[%clk 0:01:28.6]} 20. Bxb6+ {[%clk 0:01:05.3]} 20... axb6
{[%clk 0:01:17.2]} 21. Nxb6 {[%clk 0:01:04.3]} 21... Qh6 {[%clk 0:00:23.5]} 22.
Nxd7 {[%clk 0:00:44.2]} 22... Qxd2+ {[%clk 0:00:20.3]} 23. Rxd2 {[%clk
0:00:45.1]} 23... Ke8 {[%clk 0:00:19.3]} 24. Nxe5 {[%clk 0:00:41.2]} 24... g6
{[%clk 0:00:19.3]} 25. Rd5 {[%clk 0:00:31.4]} 25... Bh6+ {[%clk 0:00:17.9]} 26.
Kd1 {[%clk 0:00:31.6]} 26... Rf8 {[%clk 0:00:18.3]} 27. Ke2 {[%clk 0:00:30.3]}
27... Rf5 {[%clk 0:00:15.9]} 28. Ra5 {[%clk 0:00:27.8]} 28... Kf8 {[%clk
0:00:15.4]} 29. Nd7+ {[%clk 0:00:25.2]} 29... Kf7 {[%clk 0:00:16.3]} 30. Rxf5+
{[%clk 0:00:25.6]} 30... gxf5 {[%clk 0:00:17.2]} 31. a4 {[%clk 0:00:24.7]} 31...
Ke6 {[%clk 0:00:17.8]} 32. Nc5+ {[%clk 0:00:23]} 32... Kd5 {[%clk 0:00:17.8]}
33. Nd3 {[%clk 0:00:23.4]} 33... Bg7 {[%clk 0:00:14.3]} 34. b4 {[%clk
0:00:22.2]} 34... Bd4 {[%clk 0:00:13.9]} 35. a5 {[%clk 0:00:20.6]} 35... e5
{[%clk 0:00:13.7]} 36. b5 {[%clk 0:00:19.7]} 36... e4 {[%clk 0:00:12.7]} 37.
Nf4+ {[%clk 0:00:18.7]} 37... Kc5 {[%clk 0:00:13.4]} 38. Ne6+ {[%clk 0:00:19.1]}
38... Kxb5 {[%clk 0:00:12.5]} 39. Nxd4+ {[%clk 0:00:19.8]} 39... Kxa5 {[%clk
0:00:13.2]} 40. Nxf5 {[%clk 0:00:20.5]} 1-0

[Event "Late-Titled-Tuesday-Blitz-September-12-2023"]
[Site "Chess.com"]
[Date "2023.09.12"]
[Round "6"]
[White "IMSlavin"]
[Black "Truequitos"]
[Result "0-1"]
[WhiteElo "2229"]
[BlackElo "2446"]
[TimeControl "180+1"]
[EndTime "15:03:48 PDT"]
[Termination "Truequitos won by checkmate"]

1. e4 {[%clk 0:02:59.9]} 1... e6 {[%clk 0:02:59.6]} 2. Nf3 {[%clk 0:02:59.4]}
2... d5 {[%clk 0:02:59.6]} 3. e5 {[%clk 0:03:00.3]} 3... c5 {[%clk 0:02:59]} 4.
b4 {[%clk 0:03:00.2]} 4... cxb4 {[%clk 0:02:59.9]} 5. a3 {[%clk 0:03:00.4]} 5...
Qa5 {[%clk 0:03:00]} 6. Bb2 {[%clk 0:02:58.1]} 6... b3 {[%clk 0:02:51.4]} 7.
cxb3 {[%clk 0:02:54]} 7... Nc6 {[%clk 0:02:51]} 8. b4 {[%clk 0:02:49.6]} 8...
Qc7 {[%clk 0:02:46.6]} 9. d4 {[%clk 0:02:48.4]} 9... f6 {[%clk 0:02:47]} 10. Bd3
{[%clk 0:02:45.6]} 10... fxe5 {[%clk 0:02:45.9]} 11. dxe5 {[%clk 0:02:45.6]}
11... g6 {[%clk 0:02:42.6]} 12. O-O {[%clk 0:02:45]} 12... Bg7 {[%clk 0:02:42]}
13. Re1 {[%clk 0:02:45.7]} 13... Nge7 {[%clk 0:02:41.3]} 14. Nbd2 {[%clk
0:02:42.3]} 14... O-O {[%clk 0:02:39.6]} 15. Rc1 {[%clk 0:02:40.6]} 15... Qb8
{[%clk 0:02:33.4]} 16. b5 {[%clk 0:02:25.7]} 16... Na5 {[%clk 0:02:24.1]} 17.
Qa4 {[%clk 0:02:15.9]} 17... b6 {[%clk 0:02:22.1]} 18. Qb4 {[%clk 0:02:11.8]}
18... Nf5 {[%clk 0:02:07.7]} 19. g4 {[%clk 0:01:45.7]} 19... Nh6 {[%clk
0:02:06.1]} 20. h3 {[%clk 0:01:45.9]} 20... Nf7 {[%clk 0:02:04.3]} 21. Bd4
{[%clk 0:01:36.5]} 21... Bd7 {[%clk 0:01:47.7]} 22. a4 {[%clk 0:01:35.9]} 22...
Qd8 {[%clk 0:01:24.6]} 23. Kg2 {[%clk 0:01:30.9]} 23... Ng5 {[%clk 0:01:17]} 24.
Qd6 {[%clk 0:01:05.2]} 24... Nxf3 {[%clk 0:01:00]} 25. Nxf3 {[%clk 0:01:04.8]}
25... Nb3 {[%clk 0:00:32.7]} 26. Rc7 {[%clk 0:01:03.3]} 26... Rxf3 {[%clk
0:00:28.1]} 27. Rxd7 {[%clk 0:00:58.7]} 27... Qh4 {[%clk 0:00:27]} 28. Qxe6+
{[%clk 0:00:55]} 28... Kh8 {[%clk 0:00:26.4]} 29. Qxd5 {[%clk 0:00:40.4]} 29...
Qxh3+ {[%clk 0:00:20.5]} 30. Kg1 {[%clk 0:00:39.9]} 30... Qxg4+ {[%clk
0:00:11.5]} 31. Kf1 {[%clk 0:00:39.8]} 31... Raf8 {[%clk 0:00:09.2]} 32. Rd8
{[%clk 0:00:32.2]} 32... Nd2+ {[%clk 0:00:03.2]} 33. Ke2 {[%clk 0:00:29.1]}
33... Rxf2+ {[%clk 0:00:03.7]} 34. Ke3 {[%clk 0:00:26.2]} 34... Qf4# {[%clk
0:00:03.7]} 0-1

[Event "Late-Titled-Tuesday-Blitz-September-12-2023"]
[Site "Chess.com"]
[Date "2023.09.12"]
[Round "6"]
[White "Orest_Vovk"]
[Black "Chessdude1987"]
[Result "0-1"]
[WhiteElo "2585"]
[BlackElo "2448"]
[TimeControl "180+1"]
[EndTime "15:03:51 PDT"]
[Termination "Chessdude1987 won on time"]

1. e4 {[%clk 0:02:56.9]} 1... e6 {[%clk 0:03:00.3]} 2. Nc3 {[%clk 0:02:54.9]}
2... d5 {[%clk 0:03:00.5]} 3. Qe2 {[%clk 0:02:55.1]} 3... d4 {[%clk 0:02:58.5]}
4. Nd1 {[%clk 0:02:54.6]} 4... e5 {[%clk 0:02:56.7]} 5. f4 {[%clk 0:02:53.2]}
5... exf4 {[%clk 0:02:50.5]} 6. d3 {[%clk 0:02:51.4]} 6... Nc6 {[%clk
0:02:31.6]} 7. Bxf4 {[%clk 0:02:48.8]} 7... Nge7 {[%clk 0:02:30]} 8. Nf3 {[%clk
0:02:47.7]} 8... Ng6 {[%clk 0:02:30]} 9. Bd2 {[%clk 0:02:46.4]} 9... f6 {[%clk
0:02:15.3]} 10. g3 {[%clk 0:02:43.9]} 10... Bd6 {[%clk 0:02:12.3]} 11. Bg2
{[%clk 0:02:43.6]} 11... Be6 {[%clk 0:02:09.7]} 12. O-O {[%clk 0:02:43]} 12...
Qd7 {[%clk 0:02:09.5]} 13. Nf2 {[%clk 0:02:38.9]} 13... O-O-O {[%clk 0:02:07.8]}
14. c4 {[%clk 0:02:29.5]} 14... h5 {[%clk 0:01:56.1]} 15. Rfc1 {[%clk
0:01:48.5]} 15... h4 {[%clk 0:01:55.8]} 16. c5 {[%clk 0:01:43]} 16... hxg3
{[%clk 0:01:55.3]} 17. cxd6 {[%clk 0:01:39.1]} 17... gxf2+ {[%clk 0:01:55]} 18.
Qxf2 {[%clk 0:01:38.8]} 18... Qxd6 {[%clk 0:01:54.3]} 19. Qg3 {[%clk 0:01:34.9]}
19... Nge5 {[%clk 0:01:52.2]} 20. Nxe5 {[%clk 0:01:32.8]} 20... Nxe5 {[%clk
0:01:51.8]} 21. Bf4 {[%clk 0:01:23.5]} 21... g5 {[%clk 0:01:51.5]} 22. Bxe5
{[%clk 0:01:22.9]} 22... fxe5 {[%clk 0:01:51.9]} 23. a3 {[%clk 0:01:05.9]} 23...
Rh4 {[%clk 0:01:49.3]} 24. h3 {[%clk 0:00:49.8]} 24... Rdh8 {[%clk 0:01:46]} 25.
b4 {[%clk 0:00:15.4]} 25... Bxh3 {[%clk 0:01:45.5]} 26. Bf3 {[%clk 0:00:11.4]}
26... Be6 {[%clk 0:01:23.7]} 27. Rc5 {[%clk 0:00:10.5]} 27... Rh3 {[%clk
0:01:21.3]} 28. Qg2 {[%clk 0:00:10]} 28... g4 {[%clk 0:01:16.7]} 29. Bxg4 {[%clk
0:00:09.9]} 29... Rh1+ {[%clk 0:01:08.2]} 30. Qxh1 {[%clk 0:00:05.3]} 30...
Rxh1+ {[%clk 0:01:07]} 31. Kxh1 {[%clk 0:00:06.2]} 31... Bxg4 {[%clk 0:01:06.7]}
32. Kg2 {[%clk 0:00:06.2]} 32... Qh6 {[%clk 0:01:01.2]} 33. Rh1 {[%clk
0:00:05.2]} 33... Bf3+ {[%clk 0:00:58.9]} 34. Kxf3 {[%clk 0:00:03.8]} 34...
Qxh1+ {[%clk 0:00:58.9]} 35. Kg4 {[%clk 0:00:04]} 35... Qh2 {[%clk 0:00:47.2]}
36. Kf5 {[%clk 0:00:03.2]} 36... Qf4+ {[%clk 0:00:47.2]} 37. Ke6 {[%clk
0:00:03.4]} 37... Qe3 {[%clk 0:00:32.9]} 38. Rxe5 {[%clk 0:00:04.3]} 38... Qxd3
{[%clk 0:00:32.9]} 39. Kf7 {[%clk 0:00:02.7]} 39... Qxa3 {[%clk 0:00:29.8]} 0-1

[Event "Late-Titled-Tuesday-Blitz-September-12-2023"]
[Site "Chess.com"]
[Date "2023.09.12"]
[Round "6"]
[White "PapaieDudu"]
[Black "Piotrek1979"]
[Result "0-1"]
[WhiteElo "2301"]
[BlackElo "2466"]
[TimeControl "180+1"]
[EndTime "15:03:54 PDT"]
[Termination "Piotrek1979 won by checkmate"]

1. e4 {[%clk 0:03:00.9]} 1... c6 {[%clk 0:02:59.4]} 2. d4 {[%clk 0:02:57.6]}
2... d5 {[%clk 0:03:00.3]} 3. e5 {[%clk 0:02:56.5]} 3... Bf5 {[%clk 0:02:59.8]}
4. Nf3 {[%clk 0:02:57.1]} 4... e6 {[%clk 0:02:58.9]} 5. Be2 {[%clk 0:02:57.2]}
5... Nd7 {[%clk 0:02:55]} 6. O-O {[%clk 0:02:56.4]} 6... Ne7 {[%clk 0:02:53.1]}
7. Re1 {[%clk 0:02:56.8]} 7... Bg6 {[%clk 0:02:48.7]} 8. Nbd2 {[%clk 0:02:56.1]}
8... Nf5 {[%clk 0:02:47.9]} 9. Nf1 {[%clk 0:02:53.2]} 9... Be7 {[%clk
0:02:46.8]} 10. c3 {[%clk 0:02:45.2]} 10... a5 {[%clk 0:02:44.7]} 11. Ne3 {[%clk
0:02:44.6]} 11... c5 {[%clk 0:02:41.6]} 12. Bb5 {[%clk 0:02:25.9]} 12... O-O
{[%clk 0:02:36.1]} 13. a4 {[%clk 0:02:24.1]} 13... cxd4 {[%clk 0:02:31.6]} 14.
cxd4 {[%clk 0:02:07.1]} 14... Nb6 {[%clk 0:02:18.7]} 15. Bd2 {[%clk 0:02:05.8]}
15... Nxe3 {[%clk 0:02:17.2]} 16. fxe3 {[%clk 0:01:58.7]} 16... Nc4 {[%clk
0:02:18.1]} 17. Bc3 {[%clk 0:01:57.5]} 17... Rc8 {[%clk 0:02:07]} 18. Rc1 {[%clk
0:01:36.4]} 18... Be4 {[%clk 0:01:51.3]} 19. Nd2 {[%clk 0:01:26.3]} 19... Nxd2
{[%clk 0:01:49.4]} 20. Qxd2 {[%clk 0:01:26.4]} 20... b6 {[%clk 0:01:47.5]} 21.
Rf1 {[%clk 0:01:23.7]} 21... f5 {[%clk 0:01:43.5]} 22. Qe2 {[%clk 0:00:51.7]}
22... Bg5 {[%clk 0:01:28.6]} 23. Rce1 {[%clk 0:00:45.9]} 23... Bh6 {[%clk
0:01:20.1]} 24. Qf2 {[%clk 0:00:36.7]} 24... Qe7 {[%clk 0:01:19]} 25. Qe2 {[%clk
0:00:31.6]} 25... Rc7 {[%clk 0:01:18.6]} 26. Rc1 {[%clk 0:00:31.1]} 26... Qg5
{[%clk 0:01:13.1]} 27. Bd2 {[%clk 0:00:29.3]} 27... Rfc8 {[%clk 0:01:12.7]} 28.
Rxc7 {[%clk 0:00:28.7]} 28... Rxc7 {[%clk 0:01:12.2]} 29. Rc1 {[%clk 0:00:29]}
29... Rxc1+ {[%clk 0:01:06.8]} 30. Bxc1 {[%clk 0:00:29.9]} 30... Qh4 {[%clk
0:00:53.1]} 31. Bd2 {[%clk 0:00:28.9]} 31... g5 {[%clk 0:00:51.1]} 32. Be1
{[%clk 0:00:21.2]} 32... Qg4 {[%clk 0:00:47.1]} 33. Qxg4 {[%clk 0:00:08.4]}
33... fxg4 {[%clk 0:00:48]} 34. Kf2 {[%clk 0:00:08.4]} 34... Bf8 {[%clk
0:00:42.2]} 35. Kg3 {[%clk 0:00:08.5]} 35... h5 {[%clk 0:00:42.3]} 36. h4 {[%clk
0:00:07.9]} 36... gxh3 {[%clk 0:00:41.5]} 37. gxh3 {[%clk 0:00:07.5]} 37... h4+
{[%clk 0:00:41.3]} 38. Kg4 {[%clk 0:00:08]} 38... Be7 {[%clk 0:00:41.1]} 39. Kh5
{[%clk 0:00:05]} 39... Bf5 {[%clk 0:00:40.6]} 40. Bf1 {[%clk 0:00:03]} 40... Kg7
{[%clk 0:00:37.5]} 41. Bd2 {[%clk 0:00:02.1]} 41... g4 {[%clk 0:00:36.4]} 42.
hxg4 {[%clk 0:00:01.3]} 42... Bg6# {[%clk 0:00:36.4]} 0-1